[Event "Budapest Chess Festival 2024"]
[Site "Budapest"]
[Date "2024.05.28"]
[Round "6.4"]
[White "Dragnev, Valentin"]
[Black "Sokolovsky, Yahli"]
[Result "0-1"]
[ECO "B52"]
[WhiteElo "2566"]
[BlackElo "2484"]
[Annotator "TA"]
[PlyCount "78"]
[EventDate "2024.05.20"]
[EventType "swiss"]
[EventCountry "HUN"]
[SourceTitle "playchess.com"]
[Source "ChessBase"]
[SourceQuality "1"]
[TimeControl "40/5400+30:1800+30"]

{[%evp 10,78,20,18,31,17,18,0,0,0,0,0,0,0,0,-39,-30,-55,-36,-50,-31,-57,-47,-49,0,0,8,-20,0,0,58,60,52,70,54,0,7,-32,-39,-37,-33,-43,-43,-43,-43,-43,-43,-41,14,14,47,51,129,11,14,14,14,14,14,14,658,0,0,-116,-125,-351,-350,-2561,-2113,-1833,-1731]} 1. e4 {[%emt 0:00:33]} c5 {[%emt 0:03:03]} 2. Nf3 {[%emt 0:00:09]} d6 {[%emt 0:00:07]} 3. Bb5+ {[%emt 0:00:09]} Bd7 {[%emt 0:00:55]} 4. c4 {[%emt 0:00:17]} Nc6 {[%emt 0:03:00]} 5. d4 {[%emt 0:00:36]} cxd4 {[%emt 0:00:35]} 6. Nxd4 {[%emt 0:00:07]} g6 {[%emt 0:03:21]} 7. Nc3 {[%emt 0:00:24][%cal Oc4c5]} Nf6 {[%emt 0:01:11]} 8. O-O {[%emt 0:05:58]} Bg7 {[%emt 0:01:11][%cal Of6e4] The position is equal.} 9. Bxc6 {[%emt 0:00:18]} bxc6 {[%emt 0:01:22]} 10. c5 {[%emt 0:02:15]} O-O {[%emt 0:01:17]} 11. h3 {[%emt 0:08:36]} Qb8 {[%emt 0:04:01]} 12. Qe2 {[%emt 0:02:11]} e5 {[%emt 0:07:06]} 13. Nb3 {[%emt 0:14:57]} d5 {[%emt 0:00:15]} 14. exd5 $1 {[%emt 0:01:28]} Nxd5 {[%emt 0:04:33]} 15. Bd2 {[%emt 0:04:07]} Be6 {[%emt 0:05:39]} 16. Rfd1 {[%emt 0:06:53]} f5 {[%emt 0:06:32]} (16... Qc7 $15) 17. Nd4 $1 $11 {[%emt 0:05:56][%cal Bb3d4,Bd4e6,Be6g7][%mdl 32]} Nxc3 {[%emt 0:10:04]} 18. bxc3 {[%emt 0:03:37][%cal Bb2c3,Bc3c4][%mdl 32]} (18. Bxc3 {simplifies} Bd5 19. Nb5 a5 20. Nd6) 18... Bd5 {[%emt 0:05:46]} (18... exd4 19. Qxe6+ Kh8 20. cxd4 $16 (20. Qxc6 $2 dxc3 21. Bxc3 Bxc3 $19)) 19. c4 $1 {[%emt 0:02:10]} Bxg2 {[%emt 0:05:13]} (19... exd4 $6 20. cxd5 Qe8 21. Qa6 $16) (19... Bf7 $1 $11 20. Nxc6 Qc7) 20. Ne6 $1 $14 {[%emt 0:07:21]} (20. Kxg2 exd4 21. Qe6+ Rf7 $11) 20... f4 $1 {[%emt 0:01:04][%cal Oe5e4,Bf5f4,Bf4f3][%mdl 32]} 21. Nxg7 $1 {[%emt 0:04:03]} f3 {[%emt 0:09:38]} (21... Bxh3 $2 22. Bc3 Rf7 23. Rd6 (23. Bxe5 Re7 $18) (23. Qxe5 Qxe5 24. Bxe5 Rxg7 $18) 23... Kxg7 24. Bxe5+ Kg8 25. Rxg6+ (25. Rxc6 $2 Qd8 $19) 25... hxg6 26. Bxb8 Rxb8 27. Rd1 $18) 22. Qe3 {[%emt 0:11:34]} (22. Qe4 $1 $14 Kxg7 23. Bc3 (23. Qxc6 Qc8 $11)) 22... Qc8 {[%emt 0:00:57]} 23. Qxe5 {[%emt 0:01:21] Threatening mate with Ne6.} (23. Qh6 $5 Qd7 24. Qh4 Qxg7 (24... Kxg7 25. Bh6+ Kg8 26. Rxd7 Rae8 27. Bxf8 h5 28. Rg7+ Kh8 29. Qg5 Rxf8 30. Qh6#) 25. Bh6 $16) 23... Qxh3 {[%emt 0:00:40][%csl Gg2][%cal Rh3h1]} 24. Qe6+ {[%emt 0:02:56]} Kxg7 {[%emt 0:00:26][%csl Gg2][%cal Rh3h1]} 25. Bc3+ {[%emt 0:00:20]} Kh6 {[%emt 0:00:04][%csl Gg2][%cal Rh3h1] Really sharp!} 26. Qxh3+ {[%emt 0:04:16]} Bxh3 {[%emt 0:00:01]} 27. Kh2 {[%emt 0:00:24]} Bg2 {[%emt 0:02:43]} 28. Rd7 {[%emt 0:00:15] aiming for Bg7+.} Rf5 {[%emt 0:06:38]} (28... Kh5 $15 29. Rxh7+ Kg4) 29. Bd2+ $11 {[%emt 0:00:18]} g5 {[%emt 0:00:41]} 30. Re1 {[%emt 0:00:48] Against Re8} Rxc5 {[%emt 0:04:19]} ({Black should try} 30... Kg6 $14) 31. Kg3 {[%emt 0:01:49]} (31. Re6+ $1 $16 Kh5 32. Be3 Rxc4 33. Rxh7+ Kg4 34. Rg6 (34. Rxa7 {is a self mate.} Rh8+)) 31... Kh5 {[%emt 0:05:38]} 32. Re4 {[%emt 0:06:06][%cal Od2c3][%mdl 1024] Bc3! is the strong threat. White has compensation.} h6 {[%emt 0:01:58]} 33. Rd6 {[%emt 0:01:17] Bc3 would now be deadly.} Rh8 {[%emt 0:05:10]} 34. Be3 {[%emt 0:01:31]} Ra5 {[%emt 0:00:09][%mdl 8192] [#]} (34... Rf5 $11) 35. Ree6 $2 {[%emt 0:00:34]} (35. Bd4 $1 $18 {[%cal Rd4h8]} Rh7 36. Ree6) 35... c5 {[%emt 0:00:54]} (35... Rxa2 $2 {too greedy.} 36. Bd4 $18) 36. Rd2 {[%emt 0:02:02] [#]} (36. Rd5 $11) 36... Ra4 $1 $17 {[%emt 0:01:28]} 37. Rc2 {[%emt 0:00:01]} (37. Re4 $17) 37... Rf8 $19 {[%emt 0:00:06]} 38. Rc6 $2 {[%emt 0:01:14]} (38. Re7) 38... Re8 {[%emt 0:00:10] ( -> ...Re4)} 39. Bxg5 hxg5 {[%emt 0:00:16] Weighted Error Value: White=0.51/Black=0.30.  Loses game:     	White=1     	Black=1      Missed win:     	White=1     	---        Mistake:       	White=3     	Black=4      Inaccurate:     	White=4     	Black=1      OK:         	White=13    	Black=9      Best:        	---       	Black=5      Strong:       	White=5     	Black=2} 0-1

[Event "Budapest Chess Festival 2024"]
[Site "Budapest"]
[Date "2024.05.28"]
[Round "6.5"]
[White "Kadric, Denis"]
[Black "Stefansson, Vignir Vatnar"]
[Result "1-0"]
[ECO "B27"]
[WhiteElo "2558"]
[BlackElo "2463"]
[Annotator "TA"]
[PlyCount "41"]
[EventDate "2024.05.20"]
[EventType "swiss"]
[EventCountry "HUN"]
[SourceTitle "playchess.com"]
[Source "ChessBase"]
[SourceQuality "1"]
[TimeControl "40/5400+30:1800+30"]

{[%evp 9,41,13,2,13,25,19,28,20,68,56,50,54,47,52,52,42,85,62,122,122,151,114,284,246,354,353,414,419,427,415,470,464,1337,1313]} 1. e4 {[%emt 0:07:07]} c5 {[%emt 0:00:53]} 2. Nf3 {[%emt 0:00:35]} g6 {[%emt 0:00:25]} 3. c3 {[%emt 0:02:48]} d5 {[%emt 0:00:34]} 4. e5 {[%emt 0:00:24]} Nc6 {[%emt 0:03:06]} 5. d4 {[%emt 0:01:46]} Bg4 {[%emt 0:02:58]} 6. Bb5 {[%emt 0:01:14]} Qb6 {[%emt 0:16:10]} 7. Bxc6+ {[%emt 0:01:43]} Qxc6 {[%emt 0:01:56]} 8. O-O {[%emt 0:01:18] White has an edge.} f6 {[%emt 0:01:16]} (8... Bxf3 $11 9. Qxf3 e6) 9. Nbd2 {[%emt 0:07:16]} fxe5 {[%emt 0:15:23]} 10. h3 {[%emt 0:00:09]} Bxf3 {[%emt 0:01:42]} 11. Nxf3 {[%emt 0:00:04]} exd4 {[%emt 0:03:40]} 12. cxd4 {[%emt 0:13:23]} Bg7 {[%emt 0:02:11]} 13. dxc5 {[%emt 0:00:04] Threatens to win with Re1.} Qxc5 {[%emt 0:02:44]} (13... Nf6 $1 $14) 14. Re1 $16 {[%emt 0:17:14] aiming for Ng5.} Qd6 {[%emt 0:08:23]} 15. Qb3 {[%emt 0:13:33][%mdl 1024] White has strong compensation. White is more active.} b6 $2 {[%emt 0:06:57] [#] This costs Black the game.} (15... Qb6 $16 {is a better defense.}) 16. Bd2 {[%emt 0:00:17] Strongly threatening Rac1.} Bf6 {[%emt 0:05:58]} (16... Rc8 {might work better.} 17. Bb4 Qc6) 17. Bb4 $18 {[%emt 0:03:28]} Qd7 {[%emt 0:01:37]} 18. Rad1 {[%emt 0:00:33]} Rd8 {[%emt 0:06:08]} 19. Ne5 {[%emt 0:00:06]} Qb7 {[%emt 0:00:08]} 20. Qf3 {[%emt 0:05:04] [#] Ng4 would now be deadly.} e6 {[%emt 0:04:18]} (20... Bxe5 $142 21. Rxe5 Rd7 22. Rexd5 (22. Rdxd5 h5 $18) 22... Rxd5) 21. Qg4 {[%emt 0:01:48] Weighted Error Value: White=0.08 (flawless) /Black=0.40.  Loses game:     	---       	Black=1      Mistake:       	---       	Black=4      Inaccurate:     	---       	Black=1      OK:         	White=9     	Black=1      Best:        	---       	Black=1} 1-0

[Event "Budapest Chess Festival 2024"]
[Site "Budapest"]
[Date "2024.05.28"]
[Round "6.6"]
[White "Samunenkov, Ihor"]
[Black "Cabarkapa, Novak"]
[Result "1/2-1/2"]
[ECO "A45"]
[WhiteElo "2547"]
[BlackElo "2444"]
[Annotator "TA"]
[PlyCount "71"]
[EventDate "2024.05.20"]
[EventType "swiss"]
[EventCountry "HUN"]
[SourceTitle "playchess.com"]
[Source "ChessBase"]
[SourceQuality "1"]
[TimeControl "40/5400+30:1800+30"]

{[%evp 11,71,45,37,43,52,47,52,33,29,24,34,21,68,45,47,57,42,47,43,46,52,41,176,204,179,121,114,116,117,111,104,98,96,71,62,49,53,24,107,85,86,84,84,108,89,0,0,0,14,0,-10,-19,-13,-9,0,0,0,0,0,0,0,0]} 1. d4 {[%emt 0:00:34]} Nf6 {[%emt 0:08:16]} 2. g3 {[%emt 0:00:21]} d6 {[%emt 0:00:54]} 3. Bg2 {[%emt 0:00:11]} e5 {[%emt 0:02:07]} 4. dxe5 {[%emt 0:00:14]} dxe5 {[%emt 0:00:05]} 5. Qxd8+ {[%emt 0:00:08]} Kxd8 {[%emt 0:00:04]} 6. Nf3 {[%emt 0:00:10]} Nc6 {[%emt 0:10:30]} 7. b3 {[%emt 0:01:29]} Bb4+ {[%emt 0:02:52]} 8. c3 {[%emt 0:06:46]} Be7 {[%emt 0:00:10]} 9. Bb2 {[%emt 0:05:52] White is slightly better.} Bf5 {[%emt 0:09:18]} 10. c4 {[%emt 0:10:07]} Nd7 {[%emt 0:06:24]} 11. Nc3 {[%emt 0:03:37]} Nb4 {[%emt 0:09:21]} (11... a5 $11) 12. O-O-O {[%emt 0:07:58]} Kc8 {[%emt 0:03:17]} 13. e4 $1 {[%emt 0:24:00]} Bg4 {[%emt 0:00:39]} 14. h3 {[%emt 0:05:52]} Bxf3 {[%emt 0:06:44]} 15. Bxf3 {[%emt 0:00:06]} h5 {[%emt 0:00:03] Dodges Bg4} 16. Nd5 {[%emt 0:02:28]} Bc5 {[%emt 0:01:07]} (16... Nxd5 $1 $14 17. exd5 (17. cxd5 a5 $11) (17. Rxd5 c6 $11) 17... a5) 17. Nxb4 $18 {[%emt 0:03:33]} Bxb4 {[%emt 0:00:04]} 18. a3 {[%emt 0:00:08]} (18. g4 $18) 18... Be7 $16 {[%emt 0:09:00]} 19. h4 {[%emt 0:02:04]} a5 {[%emt 0:04:01]} 20. Bg2 {[%emt 0:01:35] Strongly threatening Bh3.} Nc5 {[%emt 0:00:21]} 21. Bxe5 {[%emt 0:03:58]} f6 {[%emt 0:00:15]} 22. Bb2 {[%emt 0:00:11] Threatens to win with Kc2.} Nxb3+ {[%emt 0:00:16]} 23. Kc2 {[%emt 0:00:10]} Nc5 {[%emt 0:00:20]} 24. e5 {[%emt 0:03:15] aiming for exf6.} Ra6 {[%emt 0:01:02]} (24... f5 $1 $11) 25. exf6 {[%emt 0:02:28] White is more active.} Bxf6 {[%emt 0:00:15] [#]} 26. Rd5 $1 {[%emt 0:00:35]} Na4 {[%emt 0:03:14]} 27. Bxf6 {[%emt 0:06:45]} Rxf6 {[%emt 0:00:12] [#]} 28. Rd2 {[%emt 0:00:56]} (28. Kb3 $1 $16 Nb6 29. Rd2) 28... Rhf8 $11 {[%emt 0:05:44] The position is equal.} 29. f4 {[%emt 0:01:09]} Rb6 {[%emt 0:09:01] White must now prevent ...Rb2+.} 30. Re1 {[%emt 0:03:38]} Rb2+ $1 {[%emt 0:02:56]} 31. Kc1 {[%emt 0:00:06]} Rb3 {[%emt 0:00:04][%csl LRa3,LRg3]} 32. Re5 $1 {[%emt 0:02:35][%csl LRa5,LRh5]} Rxa3 {[%emt 0:03:50]} (32... Rxg3 33. Rxa5 Nb6 (33... Rxa3 34. Ra8#) 34. c5 $18) 33. Rxa5 {[%emt 0:00:59][%cal Ra5a8]} Ra1+ {[%emt 0:00:17]} 34. Kc2 {[%emt 0:00:05][%cal Ra5a8]} Ra2+ {[%emt 0:00:05]} 35. Kc1 {[%emt 0:00:13][%cal Ra5a8]} Ra1+ {[%emt 0:00:13]} 36. Kc2 {[%emt 0:00:06] Black defended with fortune.   Weighted Error Value: White=0.11 (very precise) /Black=0.15 (very precise) .  Mistake:       	White=2     	Black=3      Inaccurate:     	White=1     	---        OK:         	White=8     	Black=11     Best:        	White=5     	Black=5      Strong:       	White=3     	Black=1} 1/2-1/2

[Event "Budapest Chess Festival 2024"]
[Site "Budapest"]
[Date "2024.05.28"]
[Round "6.7"]
[White "Kantor, Gergely"]
[Black "Juhasz, Agoston"]
[Result "1/2-1/2"]
[ECO "B94"]
[WhiteElo "2527"]
[BlackElo "2431"]
[Annotator "TA"]
[PlyCount "63"]
[EventDate "2024.05.20"]
[EventType "swiss"]
[EventCountry "HUN"]
[SourceTitle "playchess.com"]
[Source "ChessBase"]
[SourceQuality "1"]
[TimeControl "40/5400+30:1800+30"]

{[%evp 11,63,12,18,19,19,16,20,21,33,34,28,15,30,26,43,33,52,38,63,54,71,54,57,62,63,56,47,-8,7,0,0,-15,-9,-31,19,25,30,13,34,43,39,38,43,21,47,50,60,-120,-110,-107,-123,-114,-108,-340]} 1. e4 {[%emt 0:06:16]} c5 {[%emt 0:00:59]} 2. Nf3 {[%emt 0:00:06]} d6 {[%emt 0:00:09]} 3. d4 {[%emt 0:00:47]} cxd4 {[%emt 0:00:07]} 4. Nxd4 {[%emt 0:00:03]} Nf6 {[%emt 0:00:07]} 5. Nc3 {[%emt 0:00:03]} a6 {[%emt 0:00:09]} 6. Bg5 {[%emt 0:01:45]} Nbd7 {[%emt 0:02:27]} 7. Qe2 {[%emt 0:03:21]} h6 {[%emt 0:00:51]} 8. Bh4 {[%emt 0:00:20]} g6 {[%emt 0:01:02]} 9. f4 {[%emt 0:01:09] aiming for e5. The position is equal.} e5 {[%emt 0:00:29]} 10. fxe5 {[%emt 0:03:38]} dxe5 {[%emt 0:00:09] [#]} 11. O-O-O $1 {[%emt 0:01:30]} Bg7 {[%emt 0:01:30]} (11... exd4 12. e5 dxc3 (12... d3 $2 13. Rxd3 Qe7 14. Re3 $18) 13. exf6+ $18) (11... Qc7 12. Nb3) 12. Nb3 {[%emt 0:08:43]} O-O {[%emt 0:00:58]} 13. g4 {[%emt 0:11:36]} b5 {[%emt 0:01:39]} 14. a3 {[%emt 0:12:48]} Bb7 {[%emt 0:01:32]} 15. g5 {[%emt 0:04:35] White is more active.} hxg5 {[%emt 0:25:45]} 16. Bxg5 {[%emt 0:00:11]} Qc7 {[%emt 0:00:53]} 17. h4 {[%emt 0:07:12]} Nh5 {[%emt 0:01:52]} 18. Bh3 {[%emt 0:06:59]} Ndf6 {[%emt 0:06:59]} 19. Qf3 {[%emt 0:03:14] Wards off Ng3} (19. Qe3 $1 $14) 19... Rad8 {[%emt 0:03:00]} 20. Kb1 {[%emt 0:12:26]} Bc6 {[%emt 0:06:58]} 21. Rdg1 {[%emt 0:02:46][%cal Bd1g1,Bg1g4,Bg4g5][%mdl 32]} Rd6 {[%emt 0:12:07]} 22. Be3 {[%emt 0:00:18][%cal Bg5e3,Be3c5,Bc5b4][%mdl 32]} Rb8 {[%emt 0:00:45]} (22... Re8 $15) 23. Bc5 $1 $11 {[%emt 0:02:09]} Rdd8 {[%emt 0:04:06]} 24. Bb4 {[%emt 0:00:15]} Re8 {[%emt 0:00:35]} (24... Qa7 $5) 25. Bg4 {[%emt 0:01:02]} Nxg4 {[%emt 0:03:45]} 26. Rxg4 {[%emt 0:00:57]} Rbc8 {[%emt 0:00:59]} 27. Rg5 {[%emt 0:02:13]} Nf4 {[%emt 0:04:16] [#]} 28. h5 $1 {[%emt 0:00:53]} Bh6 $1 {[%emt 0:04:05] [#]} 29. Qg4 {[%emt 0:02:27]} Bxg5 $17 {[%emt 0:04:34] Black is better.} ({But not} 29... Bxe4 30. hxg6 Bxg5 (30... Bxh1 31. gxf7+ Kh8 32. Qh4 $18) 31. gxf7+ Kxf7 32. Rc1) 30. Qxg5 {[%emt 0:00:16] [#]} Bxe4 {[%emt 0:02:24][%mdl 512]} 31. Rh2 {[%emt 0:02:33]} Bf5 {[%emt 0:00:59] Strongly threatening ...Qb6.} 32. Qh6 $2 {[%emt 0:01:51][%mdl 32768] Weighted Error Value: White=0.17 (very precise) /Black=0.08 (flawless) .  Loses game:     	White=1     	---        Mistake:       	White=2     	Black=1      Inaccurate:     	---       	Black=1      OK:         	White=13    	Black=9      Best:        	---       	Black=1      Strong:       	White=1     	Black=1      Brilliant:      	---       	Black=1     . An unexpected result.} (32. hxg6 $17 fxg6 (32... Bxg6 33. Ne4 $14) 33. Nd2) 1/2-1/2

[Event "Budapest Chess Festival 2024"]
[Site "Budapest"]
[Date "2024.05.28"]
[Round "6.8"]
[White "Yaniv, Yuval"]
[Black "Vetoshko, Volodymyr"]
[Result "1-0"]
[ECO "C70"]
[WhiteElo "2337"]
[BlackElo "2505"]
[Annotator "RC"]
[PlyCount "157"]
[EventDate "2024.05.20"]
[EventType "swiss"]
[EventCountry "HUN"]
[SourceTitle "playchess.com"]
[Source "ChessBase"]
[SourceQuality "1"]
[TimeControl "40/5400+30:1800+30"]

1. e4 {[%emt 0:03:07]} e5 {[%emt 0:00:37]} 2. Nf3 {[%emt 0:00:30]} Nc6 {[%emt 0:00:04]} 3. Bb5 {[%emt 0:00:22]} a6 {[%emt 0:00:11]} 4. Ba4 {[%emt 0:00:07]} Nge7 {[%emt 0:00:28]} 5. Nc3 {[%emt 0:00:55]} d6 {[%emt 0:04:39]} 6. O-O {[%emt 0:00:22]} Ng6 {[%emt 0:05:30]} 7. Bxc6+ {[%emt 0:14:27]} bxc6 {[%emt 0:00:08]} 8. d4 {[%emt 0:00:26]} Bg4 {[%emt 0:09:30]} 9. Ne2 {[%emt 0:05:02]} Bxf3 {[%emt 0:08:14]} 10. gxf3 {[%emt 0:00:04]} Qf6 {[%emt 0:00:15]} 11. Qd3 {[%emt 0:02:50]} Be7 {[%emt 0:12:16]} 12. Kh1 {[%emt 0:09:03]} O-O {[%emt 0:08:02]} 13. Rg1 {[%emt 0:01:01]} Qe6 {[%emt 0:05:24]} 14. dxe5 {[%emt 0:10:30]} dxe5 {[%emt 0:04:06]} 15. Qb3 {[%emt 0:05:22]} Rab8 {[%emt 0:03:51]} 16. Qc3 Bb4 {[%emt 0:12:44]} 17. Qd3 {[%emt 0:16:38]} Rfd8 {[%emt 0:02:27]} 18. Qe3 {[%emt 0:01:34]} Qc4 {[%emt 0:03:08]} 19. Nc3 {[%emt 0:10:23]} Nf4 {[%emt 0:05:36]} 20. Qe1 {[%emt 0:01:01]} Nh3 {[%emt 0:01:30]} 21. Rf1 {[%emt 0:04:24]} Bxc3 {[%emt 0:06:21]} 22. bxc3 {[%emt 0:00:01]} Rd6 {[%emt 0:01:24]} 23. Ba3 {[%emt 0:06:21]} Rf6 {[%emt 0:00:26]} 24. Qe3 {[%emt 0:01:17]} h6 {[%emt 0:00:12]} 25. Be7 {[%emt 0:01:12]} Rf4 {[%emt 0:03:28]} 26. Rfd1 {[%emt 0:02:32]} Qe6 {[%emt 0:00:14]} 27. Bd8 {[%emt 0:00:19]} Rb2 {[%emt 0:01:20]} 28. Qe2 {[%emt 0:00:59]} Rxa2 {[%emt 0:01:36]} 29. Rxa2 {[%emt 0:00:36]} Qxa2 30. Bxc7 {[%emt 0:00:19]} f6 {[%emt 0:01:14]} 31. Bb6 {[%emt 0:01:33]} Kh7 {[%emt 0:00:27]} 32. Be3 {[%emt 0:00:27]} Rh4 {[%emt 0:00:08]} 33. c4 {[%emt 0:01:06]} Nf4 {[%emt 0:00:54]} 34. Bxf4 {[%emt 0:01:25]} Rxf4 {[%emt 0:00:11]} 35. Qd3 {[%emt 0:00:07]} Qb2 {[%emt 0:00:44]} 36. Kg2 {[%emt 0:01:34]} Rh4 {[%emt 0:00:20]} 37. Qb3 {[%emt 0:00:17]} Qxb3 {[%emt 0:00:36]} 38. cxb3 {[%emt 0:00:01]} f5 {[%emt 0:00:16]} 39. exf5 {[%emt 0:00:35]} Rd4 {[%emt 0:00:24]} 40. Ra1 {[%emt 0:00:00]} Rd3 {[%emt 0:00:00]} 41. Rxa6 {[%emt 0:03:10]} Rxb3 {[%emt 0:04:17]} 42. Rxc6 {[%emt 0:00:33]} Kg8 {[%emt 0:01:55]} 43. Rc7 {[%emt 0:03:36]} Rc3 {[%emt 0:01:00]} 44. c5 {[%emt 0:05:07]} Kf8 {[%emt 0:04:06]} 45. c6 {[%emt 0:00:47]} h5 {[%emt 0:10:21]} 46. Rc8+ {[%emt 0:12:36]} Ke7 {[%emt 0:00:51]} 47. c7 {[%emt 0:00:10]} Kd6 {[%emt 0:01:14]} 48. Rd8+ {[%emt 0:00:18]} Kxc7 {[%emt 0:00:07]} 49. Rg8 {[%emt 0:00:16]} h4 {[%emt 0:09:21]} 50. Rxg7+ {[%emt 0:00:05]} Kd8 {[%emt 0:00:39]} 51. h3 {[%emt 0:06:36]} Ke8 {[%emt 0:01:54]} 52. Rh7 {[%emt 0:03:37]} Rc4 {[%emt 0:00:15]} 53. f6 {[%emt 0:00:05]} Kf8 {[%emt 0:01:28]} 54. Rh5 {[%emt 0:00:16]} Rf4 {[%emt 0:00:35]} 55. Rxe5 {[%emt 0:00:05]} Rxf6 {[%emt 0:00:01]} 56. Re4 {[%emt 0:00:15]} Rh6 {[%emt 0:00:18]} 57. Rg4 {[%emt 0:00:43]} Kf7 {[%emt 0:00:25]} 58. f4 {[%emt 0:00:13]} Kf6 {[%emt 0:00:13]} 59. Kf3 {[%emt 0:00:09]} Rh8 {[%emt 0:01:30]} 60. Rg5 {[%emt 0:00:20]} Rh7 {[%emt 0:00:23]} 61. Kg4 {[%emt 0:00:15]} Rh8 {[%emt 0:00:10]} 62. f5 {[%emt 0:00:40]} Ra8 {[%emt 0:00:43]} 63. Rg6+ {[%emt 0:00:40]} Kf7 {[%emt 0:00:03]} 64. Kxh4 {[%emt 0:00:32]} Ra4+ {[%emt 0:00:59]} 65. Kg3 {[%emt 0:00:45]} Ra1 {[%emt 0:00:41]} 66. Rb6 {[%emt 0:01:31]} Rg1+ {[%emt 0:00:21]} 67. Kf3 {[%emt 0:00:06]} Rh1 {[%emt 0:00:15]} 68. Kg2 {[%emt 0:01:24]} Ra1 {[%emt 0:00:01]} 69. h4 {[%emt 0:00:38]} Ra5 {[%emt 0:00:13]} 70. f6 {[%emt 0:00:03]} Ra3 {[%emt 0:01:27]} 71. f3 {[%emt 0:00:07]} Ra1 {[%emt 0:00:22]} 72. Kg3 {[%emt 0:00:34]} Kg6 {[%emt 0:00:39]} 73. h5+ {[%emt 0:01:10]} Kf7 {[%emt 0:00:35]} 74. Kg4 {[%emt 0:00:14]} Rg1+ {[%emt 0:00:40]} 75. Kf5 {[%emt 0:00:07]} Rh1 {[%emt 0:00:06]} 76. Rb7+ {[%emt 0:00:06]} Kf8 {[%emt 0:00:28]} 77. Rh7 {[%emt 0:01:11]} Rh2 {[%emt 0:00:57]} 78. h6 {[%emt 0:00:16]} Rh3 {[%emt 0:00:21]} 79. Ke6 {[%emt 0:00:17]} 1-0